bitfinex-derivatives/quotes_SOLF0:USTF0_20250224
["timestamp","ask_amount","ask_price","bid_price","bid_amount"]
[1740432756807,17.4921,152.22,152.17,0.04604159]
[1740432758105,6.5723,152.21,152.17,0.04604159]
[1740432759600,6.5728,152.2,152.17,0.04604159]
[1740432759809,10.92,152.22,152.17,0.04604159]
[1740432760311,6.5736,152.18,152.17,0.04604159]
[1740432760908,6.577,152.11,152.07,3.9697]
[1740432761104,10.92,152.14,152.07,3.9697]
[1740432761513,6.5779,152.08,152.07,3.9697]
[1740432762007,10.92,152.14,152.07,3.9697]
[1740432762312,0.04396727,152.09,152.07,3.9697]
[1740432762811,6.62166727,152.09,152.07,3.9697]
[1740432763107,0.04396727,152.09,152.07,3.9697]
[1740432763910,6.5779,152.08,152.07,3.9697]
[1740432765213,6.5784,152.07,152.06,0.05067598]
[1740432767808,0.04396727,152.09,152.06,0.05067598]
[1740432768913,6.5783,152.08,152.06,0.05067598]
[1740432769513,0.04396727,152.09,152.06,0.05067598]
[1740432769711,10.92,152.15,152.06,0.05067598]
[1740432769915,12.9231,152.16,151.97,195.1008]
[1740432770116,12.9231,152.16,152.06,6.5785]
[1740432770310,12.9231,152.16,152.07,1.8651]
[1740432770819,12.9231,152.16,152.1,0.04780883]
[1740432771511,22.29283006,152.15,151.97,191.0]
[1740432771713,2.52299509,152.14,152.0,1.8651]
[1740432771911,3.33517867,152.14,152.0,1.8651]
[1740432772117,23.10517867,152.14,152.0,1.8651]
[1740432772419,19.77,152.12,152.0,1.8651]
[1740432772619,6.58,152.04,152.0,1.8651]
[1740432773116,6.58,152.04,152.0,1.9124343]
[1740432773117,0.04490849,152.04,152.0,1.9124343]
[1740432774108,0.04490849,152.04,152.0,8.4935343]
[1740432774715,0.04490849,152.04,152.0,1.9124343]
[1740432775318,6.62460849,152.04,152.0,1.9124343]
[1740432776408,0.04490849,152.04,152.0,1.9124343]
[1740432777015,0.04490849,152.04,152.01,6.5807]
[1740432777619,6.5791,152.06,152.02,6.5803]
[1740432779618,6.5791,152.06,152.0,1.9124343]
[1740432779819,6.5791,152.06,152.03,6.5801]
[1740432780520,6.5783,152.08,152.04,6.5796]
[1740432780817,6.5783,152.08,152.04,6.62871493]
[1740432781819,6.5783,152.08,152.05,6.5792]
[1740432782015,1.31483794,152.11,152.04,0.04911493]
[1740432782320,6.5772,152.1,152.04,0.04911493]
[1740432783121,6.5772,152.1,152.07,6.5782]
[1740432783521,1.31483794,152.11,152.04,0.04911493]
[1740432784815,21.08483794,152.11,151.99,9.02402988]
[1740432785015,1.20879772,152.1,151.99,9.02402988]
[1740432785212,1.31501084,152.09,151.99,9.02402988]
[1740432785423,1.20899506,152.08,151.99,9.02402988]
[1740432785623,1.31518379,152.07,151.99,9.02402988]
[1740432785823,0.0455484,152.05,152.02,0.04193199]
[1740432786820,0.0455484,152.05,151.99,9.02402988]
[1740432787012,1.9819484,152.05,151.99,9.02402988]
[1740432787411,6.5798,152.04,151.99,9.02402988]
[1740432787612,1.9819484,152.05,151.99,9.02402988]
[1740432788026,1.9819484,152.05,152.0,0.04810236]
[1740432789123,6.5798,152.04,152.0,0.04810236]
[1740432789523,0.0455484,152.05,152.0,0.04810236]
[1740432791322,6.5817,152.0,151.91,6.585]
[1740432791623,1.8903,152.04,151.91,6.585]
[1740432791819,6.5819,151.99,151.91,6.585]
[1740432792023,1.9813,152.03,151.9,40.14455962]
[1740432792219,1.9813,152.03,151.91,36.20995962]
[1740432792524,6.62999491,151.98,151.95,0.04601751]
[1740432792824,0.04769491,151.98,151.95,0.04601751]
[1740432794222,6.5831,151.96,151.95,0.04601751]
[1740432796626,0.04769491,151.98,151.89,9.02402988]
[1740432796819,21.8091,151.99,151.89,9.02402988]
[1740432797027,6.5844,151.93,151.89,9.02402988]
[1740432797325,21.8091,151.99,151.89,9.02402988]
[1740432797520,0.0465249,151.96,151.89,9.02402988]
[1740432797727,0.0465249,151.96,151.92,0.05032541]
[1740432798128,6.6298249,151.96,151.92,0.05032541]
[1740432798324,0.0465249,151.96,151.92,0.05032541]
[1740432799027,0.0465249,151.96,151.94,6.5839]
[1740432800422,0.0465249,151.96,151.93,10.4695]
[1740432800625,0.0465249,151.96,151.93,3.8852]
[1740432801530,0.0465249,151.96,151.93,10.4694]
[1740432802131,0.0465249,151.96,151.93,3.8852]
[1740432802432,0.0465249,151.96,151.92,0.05032541]
[1740432803332,6.5837,151.95,151.92,0.05032541]
[1740432804131,0.0465249,151.96,151.92,0.05032541]
[1740432805030,0.0465249,151.96,151.95,6.5836]
[1740432812139,0.0465249,151.96,151.92,0.05032541]
[1740432812736,6.6298249,151.96,151.92,6.63512541]
[1740432812937,6.6298249,151.96,151.92,0.05032541]
[1740432812938,0.0465249,151.96,151.92,0.05032541]
[1740432813939,0.0465249,151.96,151.95,6.5836]
[1740432821033,0.0465249,151.96,151.92,0.05032541]
[1740432821635,6.584,151.94,151.92,0.05032541]
[1740432822444,6.5838,151.95,151.92,0.05032541]
[1740432822640,0.0465249,151.96,151.92,0.05032541]
[1740432823839,6.6301249,151.96,151.92,0.05032541]
[1740432825940,0.0465249,151.96,151.94,6.5839]
[1740432826145,0.0465249,151.96,151.92,0.05032541]
[1740432826449,0.0465249,151.96,151.95,6.5836]
[1740432828850,12.21518379,152.07,151.92,0.05032541]
[1740432829046,6.5806,152.02,151.89,1.08732553]
[1740432829447,6.5806,152.02,151.99,6.5818]
[1740432829847,6.5811,152.01,151.9,36.20995962]
[1740432830148,2.0604,152.06,151.99,6.5818]
[1740432830348,6.5807,152.02,151.99,6.5818]
[1740432830545,6.5807,152.02,151.99,6.63178704]
[1740432830949,0.04230444,152.04,152.0,6.5811]
[1740432831155,0.04230444,152.04,151.99,0.04998704]
[1740432831757,0.04230444,152.04,152.03,6.5801]
[1740432832053,111.47331541,152.13,151.99,0.04998704]
[1740432832257,111.47331541,152.13,151.96,1.0866749]
[1740432832957,79.14472504,152.12,152.06,6.5785]
[1740432833251,0.04378362,152.1,152.07,0.04779264]
[1740432833459,6.5765,152.12,152.02,1.8668]
[1740432833754,1.9121,152.13,152.02,1.8668]
[1740432833755,0.04985425,152.1,152.07,0.04415905]
[1740432833956,0.04985425,152.1,152.01,9.02402988]
[1740432834459,0.04985425,152.1,152.02,6.5802]
[1740432835049,6.578,152.08,152.04,0.04813462]
[1740432835958,6.57538881,152.48,152.06,19.79]
[1740432836149,4.0541,152.45,152.07,0.1869]
[1740432836353,4.0541,152.45,152.08,19.79]
[1740432836547,4.0541,152.45,152.09,1.31501084]
[1740432836753,4.0541,152.45,152.1,19.79]
[1740432836754,187.94608585,152.26,152.1,19.79]
[1740432836959,114.81828586,152.26,152.24,0.04438808]
[1740432837159,114.81828586,152.26,152.12,19.79]
[1740432837363,114.81828586,152.26,152.23,0.0502722]
[1740432837558,114.81828586,152.26,152.08,0.7836203]
[1740432837559,134.58828586,152.26,152.08,0.7836203]
[1740432837765,19.77,152.24,152.07,0.1869]
[1740432837960,15.6247,152.25,151.97,200.02402988]
[1740432837961,19.77,152.14,151.97,200.02402988]
[1740432838266,4.0447,152.13,151.97,9.02402988]
[1740432838459,4.0447,152.13,151.98,16.96051638]
[1740432838660,4.0447,152.13,152.08,83.64932052]
[1740432839062,0.04682723,152.12,152.09,0.04290806]
[1740432839261,0.04682723,152.12,152.09,17.00342444]
[1740432839464,0.04682723,152.12,152.09,16.96051638]
[1740432839765,0.04682723,152.12,152.08,82.05904496]
[1740432840467,0.04682723,152.12,152.1,59.56128221]
[1740432840667,11.66,152.16,152.1,59.56128221]
[1740432841564,19.77,152.15,152.1,56.46318221]
[1740432841764,19.77,152.12,152.11,26.51866949]
[1740432841962,19.77,152.12,152.11,16.22916949]
[1740432842163,6.62246432,152.13,152.11,16.18669117]
[1740432842368,0.04666432,152.13,152.11,16.18669117]
[1740432842962,0.04666432,152.13,152.1,0.14872417]
[1740432844763,11.62,152.22,152.1,0.14872417]
[1740432844963,11.62,152.22,152.11,0.10162277]
[1740432845165,249.37163037,152.23,152.11,0.10162277]
[1740432845368,249.37163037,152.23,152.11,2.12832277]
[1740432845670,185.09380148,152.23,152.11,2.12832277]
[1740432845871,0.04847538,152.19,152.15,0.04995538]
[1740432846470,1.31380148,152.23,152.15,0.04995538]
[1740432847174,1.31380148,152.23,152.2,9.03466033]
[1740432847566,1.35687518,152.23,152.2,9.08388236]
[1740432847967,6.5723,152.22,152.2,9.08388236]
[1740432848173,1.35687518,152.23,152.2,9.08388236]
[1740432849274,6.5713,152.24,152.21,88.46397382]
[1740432849574,6.5706,152.26,152.21,88.46397382]
[1740432849774,19.77,152.31,152.21,88.46397382]
[1740432850073,11.58,152.3,152.21,88.46397382]
[1740432850271,6.5694,152.28,152.21,16.18669117]
[1740432850472,6.5694,152.28,152.23,0.04564961]
[1740432850675,11.58,152.3,152.23,0.04564961]
[1740432850868,6.5703,152.26,152.23,0.04564961]
[1740432851174,11.58,152.3,152.23,0.04564961]
[1740432851473,11.58,152.3,152.25,8.97737413]
[1740432851868,31.35,152.3,152.25,8.97737413]
[1740432852276,31.35,152.3,152.25,15.21618252]
[1740432852876,6.5702,152.26,152.25,15.21618252]
[1740432853476,6.5702,152.26,152.25,33.1709308]
[1740432854079,31.35,152.3,152.25,33.1709308]
[1740432854378,6.5696,152.28,152.25,33.1709308]
[1740432854874,6.5696,152.28,152.27,26.93212241]
[1740432857080,6.5696,152.28,152.27,22.83492005]
[1740432857583,11.5,152.3,152.27,22.83492005]
[1740432858083,11.5,152.3,152.27,22.8851328]
[1740432858585,11.48,152.3,152.27,171.83520758]
[1740432858782,6.5693,152.28,152.27,171.83520758]
[1740432859577,18.0293,152.28,152.27,171.83520758]
[1740432859880,18.0293,152.28,152.27,108.50117758]
[1740432860982,6.5693,152.28,152.27,108.50117758]
[1740432861985,26.3393,152.28,152.27,98.23477758]
[1740432862286,19.77,152.28,152.21,8.98508514]
[1740432863387,0.04264641,152.26,152.23,0.04194493]
[1740432864088,0.04264641,152.26,152.23,6.2685948]
[1740432864587,0.04264641,152.26,152.23,0.04194493]
[1740432866687,0.04264641,152.26,152.23,6.2685948]
[1740432867690,0.04264641,152.26,152.23,0.04194493]
[1740432868391,1.31362889,152.25,152.24,6.18354987]
[1740432868689,21.08362889,152.25,152.24,6.18354987]
[1740432868885,21.08362889,152.25,152.24,6.13874987]
[1740432869090,21.08362889,152.25,152.23,0.04194493]
[1740432869389,1.31371518,152.24,152.23,0.04194493]
[1740432870995,21.08371518,152.24,152.23,0.04194493]
[1740432871995,32.46371518,152.24,152.23,0.04194493]
[1740432874793,39.03471518,152.24,152.23,0.04194493]
[1740432876396,39.03471518,152.24,152.23,4.493e-05]
[1740432878002,32.46371518,152.24,152.18,8.98508514]
[1740432878198,19.77,152.19,152.16,8.514e-05]
[1740432878397,19.77,152.17,152.16,8.514e-05]
[1740432878701,19.77,152.17,152.15,1.418e-05]
[1740432878900,32.42440588,152.16,152.13,71.88068112]
[1740432879201,6.5753,152.14,152.13,71.92657227]
[1740432879399,6.5753,152.14,152.13,60.93787227]
[1740432879904,195.31449227,152.15,152.13,60.93787227]
[1740432880100,1.31457867,152.14,152.13,60.93787227]
[1740432882106,1.31457867,152.14,152.13,0.04589115]
[1740432882503,21.08457867,152.14,152.13,0.04589115]
[1740432882809,27.65987867,152.14,152.13,0.04589115]
[1740432883010,21.08457867,152.14,152.13,0.04589115]
[1740432883310,27.65987867,152.14,152.13,0.04589115]
[1740432884506,27.65987867,152.14,152.13,9.115e-05]
[1740432885405,19.77,152.09,151.99,6.29135886]
[1740432885610,12.61509731,152.08,151.99,6.29135886]
[1740432886007,12.61509731,152.08,152.0,6.29135886]
[1740432886408,0.04296548,152.06,152.02,0.04904408]
[1740432886709,172.12296548,152.06,152.02,0.04904408]
[1740432887409,172.12296548,152.06,152.03,6.29135886]
[1740432887810,191.89296548,152.06,152.03,6.29135886]
[1740432888010,1.31535679,152.05,152.03,6.29135886]
[1740432888711,1.31535679,152.05,152.02,0.04904408]
[1740432889411,11.32,152.04,152.02,0.04904408]
[1740432890302,1.31552982,152.03,152.02,0.04904408]
[1740432891909,27.66562982,152.03,152.02,0.04904408]
[1740432894610,27.66562982,152.03,152.02,4.408e-05]
[1740432895913,28.8753892,152.03,152.02,4.408e-05]
[1740432897515,27.66562982,152.03,152.02,4.408e-05]
[1740432897914,28.87536821,152.03,152.02,4.408e-05]
[1740432898613,38.94562982,152.03,152.02,4.408e-05]
[1740432900115,27.66562982,152.03,152.02,4.408e-05]
[1740432900314,38.92562982,152.03,152.02,4.408e-05]
[1740432902421,19.77,151.97,151.94,1.9655]
[1740432902921,11.26,152.01,151.94,1.9655]
[1740432903218,1.31578947,152.0,151.84,72.13316317]
[1740432903412,6.5867,151.88,151.85,4.0911]
[1740432903618,11.32,151.87,151.85,12.41685886]
[1740432903818,11.32,151.87,151.85,12.46046921]
[1740432904413,11.32,151.87,151.85,6.16911035]
[1740432904718,2.0101,151.87,151.85,6.16911035]
[1740432904913,183.56,151.9,151.85,6.16911035]
[1740432905722,172.24,151.9,151.85,12.39976606]
[1740432906019,0.0475301,151.89,151.85,12.39976606]
[1740432906220,146.4514301,151.9,151.85,12.39976606]
[1740432907520,0.0428099,151.89,151.85,12.39976606]
[1740432907722,0.0428099,151.89,151.86,6.23065571]
[1740432908421,172.28,151.99,151.87,6.23065571]
[1740432908819,6.5826,151.98,151.88,6.23065571]
[1740432909019,172.28,151.99,151.88,6.23065571]
[1740432909322,6.5824,151.98,151.88,6.23065571]
[1740432909516,172.28,151.99,151.89,6.23065571]
[1740432909718,0.04291057,151.95,151.91,0.04545408]
[1740432910620,0.04291057,151.95,151.91,6.27610979]
[1740432911518,6.5849,151.92,151.91,6.27610979]
[1740432911725,17.8849,151.92,151.91,0.04545408]
[1740432915428,0.04291057,151.95,151.91,0.04545408]
[1740432915628,11.26,151.94,151.91,0.04545408]
[1740432916121,6.5849,151.92,151.91,0.04545408]
[1740432916328,6.5849,151.92,151.91,5.408e-05]
[1740432918528,27.66138235,151.92,151.91,5.408e-05]
[1740432921835,27.66138235,151.92,151.91,1.278e-05]
[1740432923134,7.90138235,151.92,151.91,1.278e-05]
[1740432923533,7.90138235,151.92,151.9,0.04605205]
[1740432924435,1.31648235,151.92,151.9,0.04605205]
[1740432926037,7.90138235,151.92,151.9,0.04605205]
[1740432927739,1.31648235,151.92,151.9,0.04605205]
[1740432927936,6.5853,151.91,151.9,0.04605205]
[1740432929443,6.5857,151.9,151.89,6.10671705]
[1740432929641,1.31648235,151.92,151.89,1.705e-05]
[1740432930043,27.66148235,151.92,151.89,1.705e-05]
[1740432930636,21.12192609,151.92,151.89,0.04344204]
[1740432934653,19.76,151.91,151.82,72.13316317]
[1740432934850,1.31665569,151.9,151.82,72.13316317]
[1740432935861,0.04548013,151.88,151.84,0.04920671]
[1740432936062,11.1,151.87,151.84,0.04920671]
[1740432939762,0.04548013,151.88,151.84,0.04920671]
[1740432946365,0.04548013,151.88,151.84,6.63750671]
[1740432946668,0.04548013,151.88,151.84,0.04920671]
[1740432947761,0.04548013,151.88,151.85,6.5878]
[1740432949062,0.04548013,151.88,151.84,0.04920671]
[1740432949269,0.04548013,151.88,151.84,14.60228674]
[1740432949668,6.5879,151.85,151.84,14.60228674]
[1740432950567,0.04548013,151.88,151.84,14.60228674]
[1740432951466,0.00478013,151.88,151.84,14.60228674]
[1740432951966,0.00478013,151.88,151.84,0.04920671]
[1740432952270,6.59138013,151.88,151.84,0.04920671]
[1740432952470,0.00478013,151.88,151.84,6.63730671]
[1740432952666,0.00478013,151.88,151.84,0.04920671]
[1740432953371,0.00478013,151.88,151.85,6.5879]
[1740432953770,0.00478013,151.88,151.84,0.04920671]
[1740432953971,6.59168013,151.88,151.84,0.04920671]
[1740432954172,0.00478013,151.88,151.84,0.04920671]
[1740432954470,0.00478013,151.88,151.85,15.73487743]
[1740432954664,0.00478013,151.88,151.85,9.14727743]
[1740432955470,0.00478013,151.88,151.87,6.587]
[1740432957771,0.00478013,151.88,151.87,21.14008003]
[1740432960379,6.5829,151.97,151.93,6.584]
[1740432961472,6.62511478,151.97,151.93,6.63000534]
[1740432961673,6.62511478,151.97,151.94,6.5839]
[1740432963375,0.04221478,151.97,151.93,0.04600534]
[1740432963580,0.04221478,151.97,151.96,6.5831]
[1740432966580,0.04221478,151.97,151.93,0.04600534]
[1740432967384,6.5835,151.96,151.93,0.04600534]
[1740432969476,6.584,151.94,151.93,0.04600534]
[1740432969677,0.04221478,151.97,151.92,9.10330223]
[1740432969883,2.0378,151.96,151.92,9.10330223]
[1740432970084,6.5844,151.93,151.92,9.10330223]
[1740432971582,6.5844,151.93,151.91,0.04940647]
[1740432972785,8.5844,151.93,151.91,0.04940647]
[1740432974387,8.5844,151.93,151.87,6.587]
[1740432974579,2.0,151.93,151.92,6.5849]
[1740432976588,1.9073,151.93,151.92,6.5849]
[1740432979489,1.9073,151.93,151.92,11.96369849]
[1740432981487,1.9073,151.93,151.92,39.27360519]
[1740432982390,0.04844711,151.94,151.92,32.68870519]
[1740432982591,0.04844711,151.94,151.93,6.5844]
[1740432983693,4.711e-05,151.94,151.93,6.5844]
[1740432984194,4.711e-05,151.94,151.93,39.27310519]
[1740432987298,4.711e-05,151.94,151.93,120.71549134]
[1740432987596,6.5817,152.0,151.93,114.13109134]
[1740432987797,2.0472,152.03,151.93,114.13109134]
[1740432988598,0.04683915,152.0,151.96,0.04563717]
[1740432988798,0.04683915,152.0,151.93,120.71549134]
[1740432988999,0.04683915,152.0,151.93,79.52157341]
[1740432989902,6.5828,151.97,151.95,0.04816663]
[1740432990699,4.0788,151.99,151.95,0.04816663]
[1740432991002,2.0334,151.99,151.95,0.04816663]
[1740432991398,2.0334,151.99,151.98,6.5823]
[1740432991802,0.04683915,152.0,151.95,0.04816663]
[1740432992197,0.04683915,152.0,151.99,6.5818]
[1740432992605,0.04683915,152.0,151.98,6.582]
[1740432992801,0.04683915,152.0,151.95,0.04816663]
[1740432993305,0.04683915,152.0,151.99,6.5818]
[1740432993505,0.04683915,152.0,151.95,0.04816663]
[1740432994906,0.04683915,152.0,151.99,6.5818]
[1740432996306,0.04683915,152.0,151.98,6.5822]
[1740432996706,0.04683915,152.0,151.96,36.50811717]
[1740432997004,0.04683915,152.0,151.99,6.5818]
[1740432997708,3.915e-05,152.0,151.99,6.5818]
[1740433000610,3.915e-05,152.0,151.99,48.47651967]
[1740433001406,3.915e-05,152.0,151.99,32.59471967]
[1740433001606,3.915e-05,152.0,151.99,23.29471967]
[1740433001803,3.915e-05,152.0,151.99,17.09471967]
[1740433002005,3.915e-05,152.0,151.99,13.99461967]
[1740433003205,3.915e-05,152.0,151.99,20.57641967]
[1740433003511,3.915e-05,152.0,151.99,6.5818]
[1740433003816,3.915e-05,152.0,151.97,8.60801717]
[1740433005512,3.915e-05,152.0,151.97,15.19061717]
[1740433006204,3.915e-05,152.0,151.97,6.5826]
[1740433009920,6.58153915,152.0,151.97,6.5826]
[1740433011821,6.58153915,152.0,151.98,5.24989038]
[1740433012023,3.915e-05,152.0,151.98,5.24989038]
[1740433012225,3.915e-05,152.0,151.99,6.5818]
[1740433013223,3.915e-05,152.0,151.98,11.83189038]
[1740433013616,3.915e-05,152.0,151.98,5.24989038]
[1740433014723,3.915e-05,152.0,151.99,6.5818]
[1740433015225,3.915e-05,152.0,151.99,11.83169038]
[1740433021033,3.915e-05,152.0,151.99,84.76886379]
[1740433021931,6.5796,152.05,151.99,78.18706379]
[1740433022129,128.063692,152.1,152.01,6.5807]
[1740433022835,6.5798,152.04,152.01,6.5807]
[1740433023134,6.62863197,152.04,152.01,6.62408849]
[1740433024735,0.04883197,152.04,152.01,6.62408849]
[1740433025631,0.04883197,152.04,152.01,0.04338849]
[1740433026234,0.04883197,152.04,152.03,6.5801]
[1740433027033,0.04883197,152.04,152.01,0.04338849]
[1740433027537,6.5805,152.02,152.01,0.04338849]
[1740433032032,0.04883197,152.04,152.01,0.04338849]
[1740433032637,0.04883197,152.04,152.03,6.5801]
[1740433034338,0.04883197,152.04,152.01,0.04338849]
[1740433034339,0.04883197,152.04,152.01,6.62408849]
[1740433035234,0.04883197,152.04,152.01,0.04338849]
[1740433035840,6.62863197,152.04,152.01,0.04338849]
[1740433036544,6.62863197,152.04,152.03,32.70103156]
[1740433036742,0.04883197,152.04,152.03,32.70103156]
[1740433037734,0.04883197,152.04,152.03,39.28113156]
[1740433038543,3.197e-05,152.04,152.03,39.28113156]
[1740433038739,124.087392,152.1,152.08,6.5779]
[1740433039440,124.087392,152.1,152.03,32.70103156]
[1740433039646,6.5764,152.12,152.09,6.5775]
[1740433039847,0.0470157,152.08,152.05,0.04838301]
[1740433040048,0.0492608,152.08,152.05,0.04769435]
[1740433041347,6.6273608,152.08,152.05,0.04769435]
[1740433042440,6.6272608,152.08,152.05,0.04769435]
[1740433043147,0.0492608,152.08,152.05,0.04769435]
[1740433043348,0.0492608,152.08,152.05,8.05831377]
[1740433043547,6.5788,152.06,152.05,8.05831377]
[1740433044243,0.0492608,152.08,152.05,8.05831377]
[1740433044850,6.6273608,152.08,152.05,8.05831377]
[1740433045849,0.0492608,152.08,152.05,8.05831377]
[1740433047651,0.0492608,152.08,152.04,0.04853677]
[1740433048150,6.5788,152.06,152.04,0.04853677]
[1740433048650,0.0492608,152.08,152.04,0.04853677]
[1740433048842,6.6273608,152.08,152.04,0.04853677]
[1740433049246,6.5784,152.07,152.04,0.04853677]
[1740433049953,0.0492608,152.08,152.04,0.04853677]
[1740433052448,6.6272608,152.08,152.04,0.04853677]
[1740433055758,6.5785,152.07,152.04,0.04853677]
[1740433059658,6.5788,152.06,152.04,0.04853677]
[1740433060460,6.6273608,152.08,152.04,0.04853677]
[1740433061051,0.0492608,152.08,152.05,6.5792]
[1740433062757,0.0492608,152.08,152.04,0.04853677]
[1740433062962,172.14,152.14,152.04,0.04853677]
[1740433063162,172.14,152.14,151.99,88.04257341]
[1740433063358,6.5764,152.12,152.08,6.5777]
[1740433064163,6.61857488,152.12,152.08,6.6194954]
[1740433065161,6.577,152.11,152.08,0.0417954]
[1740433067465,6.577,152.11,152.08,9.16348292]
[1740433069270,6.5775,152.1,152.08,9.16348292]
[1740433070466,6.5775,152.1,152.08,0.0417954]
[1740433070657,6.5775,152.09,152.08,0.0417954]
[1740433071066,30.68,152.09,152.06,9.12168752]
[1740433071262,6.5784,152.07,152.06,9.12168752]
[1740433071457,6.5784,152.07,152.06,8.752e-05]
[1740433073165,6.62423528,152.08,152.05,0.04827578]
[1740433073460,0.04613528,152.08,152.05,0.04827578]
[1740433077665,6.62433528,152.08,152.05,0.04827578]
[1740433077964,0.04613528,152.08,152.05,0.04827578]
[1740433079878,0.04613528,152.08,152.07,6.5784]
[1740433080278,17.4951,152.15,152.1,6.577]
[1740433080777,17.4951,152.15,152.06,3.969]
[1740433080974,17.4951,152.15,152.07,6.578]
[1740433081167,6.5751,152.15,152.07,6.578]
[1740433081375,0.04154779,152.13,152.11,6.5765]
[1740433081575,10.92,152.21,152.06,3.969]
[1740433081779,6.573,152.2,152.06,3.969]
[1740433081969,6.573,152.2,152.12,6.5759]
[1740433082278,30.68,152.21,152.13,1.9792]
[1740433082480,30.68,152.21,152.06,1.9898]
[1740433082481,30.68,152.21,152.08,6.5776]
[1740433082780,0.04614356,152.19,152.15,0.05022841]
[1740433082976,6.5732,152.2,152.15,0.05022841]
[1740433083179,0.04790227,152.19,152.15,0.05022841]
[1740433083475,6.5737,152.18,152.15,0.05022841]
[1740433084175,0.04790227,152.19,152.15,0.05022841]
[1740433084380,6.5745,152.16,152.15,0.05022841]
[1740433084581,0.04790227,152.19,152.15,0.05022841]
[1740433085175,6.5741,152.17,152.15,0.05022841]
[1740433086380,6.5745,152.16,152.15,0.05022841]
[1740433086580,0.04790227,152.19,152.15,0.05022841]
[1740433086880,6.5742,152.17,152.15,0.05022841]
[1740433088378,0.04790227,152.19,152.15,0.05022841]
[1740433088582,6.5745,152.16,152.15,0.05022841]
[1740433088785,19.76,152.16,152.07,29.23085548]
[1740433088981,6.5779,152.08,152.07,27.35725548]
[1740433089284,194.0,152.2,152.06,27.35725548]
[1740433089285,30.68,152.11,152.06,27.35725548]
[1740433089478,10.9,152.1,152.06,27.35725548]
[1740433089881,6.5784,152.07,152.06,27.35725548]
[1740433090079,6.5784,152.07,152.06,27.40450055]
[1740433092883,6.5784,152.07,152.06,0.04724507]
[1740433094377,26.3384,152.07,152.06,0.04724507]
[1740433094577,26.3384,152.07,152.06,4.507e-05]
[1740433094780,6.5784,152.07,152.06,4.507e-05]
[1740433100089,26.3384,152.07,152.06,4.507e-05]
[1740433102695,27.65358379,152.07,152.06,4.507e-05]
[1740433105695,28.86278998,152.07,152.06,4.507e-05]
[1740433106397,26.3436,151.95,151.94,3.73545548]
[1740433106702,37.2636,151.95,151.94,3.64834558]
[1740433107189,37.2636,151.95,151.93,72.93717341]
[1740433107396,37.2636,151.95,151.88,72.93717341]
[1740433107596,37.2636,151.95,151.92,0.0427015]
[1740433108695,30.68,151.95,151.92,0.0427015]
[1740433109603,10.92,151.95,151.92,0.0427015]
[1740433112898,0.04783691,151.96,151.92,0.0427015]
[1740433113295,0.04783691,151.96,151.92,6.6273015]
[1740433113695,0.04783691,151.96,151.92,0.0427015]
[1740433113903,0.04783691,151.96,151.93,6.5843]
[1740433114706,296.95835516,151.98,151.92,0.0427015]
[1740433115297,124.77835516,151.98,151.92,0.0427015]
[1740433115501,121.67535516,151.98,151.92,0.0427015]
[1740433115701,121.67535516,151.98,151.97,6.5827]
[1740433115702,118.57225516,151.98,151.97,6.5827]
[1740433115897,112.36805516,151.98,151.97,6.5827]
[1740433116308,0.04690384,151.99,151.98,6.5823]
[1740433117108,17.499,152.06,152.0,6.5812]
[1740433117700,17.499,152.06,151.91,5.7158]
[1740433118009,17.499,152.06,152.01,6.5809]
[1740433118205,0.04601718,152.0,151.97,0.04416477]
[1740433118503,5.231e-05,152.0,151.97,0.04798038]
[1740433118706,173.55518379,152.07,151.97,0.04798038]
[1740433118907,173.55518379,152.07,151.93,13.1689]
[1740433119513,173.55518379,152.07,152.04,6.5796]
[1740433119708,0.04224155,152.02,151.98,0.04743977]
[1740433119908,173.55518379,152.07,151.91,5.7158]
[1740433120108,0.04801751,152.02,151.98,0.04237518]
[1740433121210,0.04801751,152.02,152.0,6.5811]
[1740433121612,0.04801751,152.02,151.99,1.9757]
[1740433122006,0.04801751,152.02,151.99,8.5575]
[1740433122205,0.04801751,152.02,152.0,1.9504]
[1740433125414,0.04801751,152.02,152.01,6.581]
[1740433125811,173.55518379,152.07,152.0,1.9504]
[1740433126011,173.55518379,152.07,152.02,6.5803]
[1740433127013,173.55518379,152.07,152.03,0.04777599]
[1740433127507,173.55518379,152.07,152.03,6.62757599]
[1740433127704,1.31518379,152.07,152.03,0.04777599]
[1740433128712,1.31518379,152.07,152.06,6.5788]
[1740433128911,6.5775,152.09,152.06,6.5788]
[1740433129316,19.76,152.14,152.03,0.04777599]
[1740433129513,10.9,152.15,152.0,1.9504]
[1740433129718,10.9,152.15,152.07,0.04784357]